[Event "VI Sunway Sitges Open 2019"]
[Site "Sitges"]
[Date "2019.12.16"]
[Round "4.22"]
[White "Nasuta, Grzegorz"]
[Black "Fecker, Noah"]
[Result "1-0"]
[ECO "B47"]
[WhiteElo "2545"]
[BlackElo "2277"]
[Annotator "ChessBase"]
[PlyCount "103"]
[EventDate "2019.12.13"]
[EventType "swiss"]
[EventCountry "ESP"]
[SourceTitle "playchess.com"]
[Source "ChessBase"]
[SourceQuality "1"]
[TimeControl "40/5400+30:1800+30"]

1. e4 {[%emt 0:00:00]} c5 {[%emt 0:00:00]} 2. Nf3 {[%emt 0:00:00]} e6 {[%emt 0:00:00]} 3. d4 {[%emt 0:00:00]} cxd4 {[%emt 0:00:00]} 4. Nxd4 {[%emt 0:00:00]} Nc6 {[%emt 0:00:00]} 5. Nc3 {[%emt 0:00:00]} Qc7 {[%emt 0:00:00]} 6. g3 {[%emt 0:00:23]} a6 {[%emt 0:01:18]} 7. Bg2 {[%emt 0:00:06]} Nf6 {[%emt 0:01:11]} 8. O-O {[%emt 0:01:35]} h5 {[%emt 0:00:36]} 9. h3 {[%emt 0:00:15]} Bc5 {[%emt 0:00:55]} 10. Nxc6 {[%emt 0:00:08]} dxc6 {[%emt 0:04:47]} 11. e5 {[%emt 0:00:15]} Qxe5 {[%emt 0:05:40]} 12. Bf4 {[%emt 0:03:55]} Qd4 {[%emt 0:17:17]} 13. Qe2 {[%emt 0:00:58]} Be7 {[%emt 0:01:10]} 14. Rad1 {[%emt 0:00:29]} Qc5 {[%emt 0:08:51]} 15. Be5 {[%emt 0:24:16]} O-O {[%emt 0:08:30]} 16. a3 {[%emt 0:04:57]} Nd7 {[%emt 0:09:46]} 17. Bd4 {[%emt 0:00:33]} Qg5 {[%emt 0:01:27]} 18. h4 {[%emt 0:08:09]} Qh6 {[%emt 0:05:22]} 19. Be3 {[%emt 0:05:48]} Qg6 {[%emt 0:00:40]} 20. Bf3 {[%emt 0:03:54]} Nf6 {[%emt 0:03:19]} 21. Bg5 {[%emt 0:02:06]} Re8 {[%emt 0:02:13]} 22. Na4 {[%emt 0:26:54]} e5 {[%emt 0:03:21]} 23. Nb6 {[%emt 0:05:19]} Rb8 {[%emt 0:14:07]} 24. Nxc8 {[%emt 0:00:40]} Rbxc8 {[%emt 0:00:52]} 25. Bxf6 {[%emt 0:02:17]} Qxf6 {[%emt 0:00:03]} 26. Rd7 {[%emt 0:02:25]} b5 {[%emt 0:01:21]} 27. Bxh5 {[%emt 0:00:11]} Rcd8 {[%emt 0:01:18]} 28. Rfd1 {[%emt 0:03:58]} Rxd7 {[%emt 0:01:22]} 29. Rxd7 {[%emt 0:00:01]} Rd8 {[%emt 0:00:10]} 30. Rxd8+ {[%emt 0:01:50]} Bxd8 {[%emt 0:00:02]} 31. Bf3 {[%emt 0:00:11]} Bb6 {[%emt 0:01:02]} 32. Qe4 {[%emt 0:00:14]} Kf8 {[%emt 0:03:17]} 33. Qxc6 {[%emt 0:00:26]} Qxc6 {[%emt 0:00:31]} 34. Bxc6 {[%emt 0:00:00]} Ke7 {[%emt 0:00:08]} 35. Kf1 {[%emt 0:00:49]} Kd6 {[%emt 0:00:14]} 36. Be8 {[%emt 0:00:10]} Ke7 {[%emt 0:00:13]} 37. Bc6 {[%emt 0:00:01]} Kd6 {[%emt 0:00:05]} 38. Bb7 {[%emt 0:01:49]} a5 {[%emt 0:00:13]} 39. Ke2 {[%emt 0:00:37]} b4 {[%emt 0:00:34]} 40. axb4 {[%emt 0:00:00]} axb4 {[%emt 0:00:00]} 41. c3 {[%emt 0:03:41]} bxc3 {[%emt 0:01:03]} 42. bxc3 {[%emt 0:01:02]} f6 {[%emt 0:02:42]} 43. f3 {[%emt 0:03:46]} Ke6 {[%emt 0:09:03]} 44. g4 {[%emt 0:00:33]} Ba7 {[%emt 0:14:30]} 45. h5 {[%emt 0:01:54]} Bb6 {[%emt 0:01:24]} 46. Kd3 {[%emt 0:00:09]} Ba5 {[%emt 0:05:23]} 47. c4 {[%emt 0:01:07]} Kd6 {[%emt 0:03:00]} 48. Ke4 {[%emt 0:09:49]} Bc7 {[%emt 0:00:22]} 49. Kf5 {[%emt 0:01:25]} Ke7 {[%emt 0:00:03]} 50. Kg6 {[%emt 0:00:09]} Kf8 {[%emt 0:00:07]} 51. h6 {[%emt 0:00:19]} gxh6 {[%emt 0:00:24]} 52. Kxf6 {[%emt 0:00:05]} 1-0

[Event "VI Sunway Sitges Open 2019"]
[Site "Sitges"]
[Date "2019.12.16"]
[Round "4.23"]
[White "Raja Harshit"]
[Black "Erigaisi Arjun"]
[Result "0-1"]
[ECO "B31"]
[WhiteElo "2447"]
[BlackElo "2544"]
[Annotator "ChessBase"]
[PlyCount "134"]
[EventDate "2019.12.13"]
[EventType "swiss"]
[EventCountry "ESP"]
[SourceTitle "playchess.com"]
[Source "ChessBase"]
[SourceQuality "1"]
[TimeControl "40/5400+30:1800+30"]

1. e4 {[%emt 0:00:00]} c5 {[%emt 0:00:00]} 2. Nf3 {[%emt 0:00:00]} Nc6 {[%emt 0:00:00]} 3. Bb5 {[%emt 0:02:48]} g6 {[%emt 0:00:00]} 4. Bxc6 {[%emt 0:00:24]} dxc6 {[%emt 0:00:00]} 5. d3 {[%emt 0:00:40]} Bg7 {[%emt 0:00:09]} 6. h3 {[%emt 0:00:31]} Nf6 {[%emt 0:00:08]} 7. Nc3 {[%emt 0:01:04]} Nd7 {[%emt 0:00:31]} 8. Be3 {[%emt 0:00:57]} e5 {[%emt 0:00:16]} 9. O-O {[%emt 0:04:04]} b6 {[%emt 0:02:03]} 10. Qd2 {[%emt 0:01:04]} h6 {[%emt 0:00:08]} 11. Nh2 {[%emt 0:00:47]} Nf8 {[%emt 0:02:51]} 12. f4 {[%emt 0:03:24]} exf4 {[%emt 0:01:38]} 13. Bxf4 {[%emt 0:00:05]} Ne6 {[%emt 0:00:42]} 14. Be3 {[%emt 0:00:24]} Nd4 {[%emt 0:03:24]} 15. Nd1 {[%emt 0:02:34]} Be6 {[%emt 0:05:39]} 16. c3 {[%emt 0:03:30]} Nb5 {[%emt 0:01:11]} 17. Nf2 {[%emt 0:00:08]} Qd7 {[%emt 0:06:01]} 18. a4 {[%emt 0:06:18]} Nd6 {[%emt 0:01:34]} 19. a5 {[%emt 0:15:09]} Rd8 {[%emt 0:28:06]} 20. Nf3 {[%emt 0:12:57]} f5 {[%emt 0:06:17]} 21. axb6 {[%emt 0:04:38]} axb6 {[%emt 0:00:43]} 22. Bf4 {[%emt 0:05:47]} g5 {[%emt 0:14:47]} 23. Bxd6 {[%emt 0:21:26]} Qxd6 {[%emt 0:00:11]} 24. exf5 {[%emt 0:00:15]} Bxf5 {[%emt 0:00:06]} 25. Rae1+ {[%emt 0:02:16]} Kd7 {[%emt 0:01:07]} 26. Ne4 {[%emt 0:04:52]} Qg6 {[%emt 0:03:14]} 27. Qf2 {[%emt 0:02:39]} Bxe4 {[%emt 0:10:05]} 28. dxe4 {[%emt 0:01:00]} Qe6 {[%emt 0:01:46]} 29. Nxg5 {[%emt 0:01:57]} hxg5 {[%emt 0:00:07]} 30. Qf7+ {[%emt 0:00:10]} Qe7 {[%emt 0:00:12]} 31. Rd1+ {[%emt 0:01:40]} Bd4+ {[%emt 0:00:06]} 32. cxd4 {[%emt 0:00:49]} Qxf7 {[%emt 0:00:08]} 33. Rxf7+ {[%emt 0:00:02]} Ke6 {[%emt 0:00:06]} 34. Rc7 {[%emt 0:00:57]} Rxd4 {[%emt 0:00:10]} 35. Rxc6+ {[%emt 0:00:24]} Ke5 {[%emt 0:00:06]} 36. Rf1 {[%emt 0:01:21]} Rb4 {[%emt 0:00:28]} 37. Rf2 {[%emt 0:00:31]} Rg8 {[%emt 0:02:50]} 38. Rcf6 {[%emt 0:00:55]} Kxe4 {[%emt 0:00:38]} 39. Rd2 {[%emt 0:00:28]} g4 {[%emt 0:01:41]} 40. hxg4 {[%emt 0:00:00]} Rxg4 {[%emt 0:00:00]} 41. Re6+ {[%emt 0:03:34]} Kf5 {[%emt 0:00:54]} 42. Re3 {[%emt 0:00:16]} Rge4 {[%emt 0:01:00]} 43. Kf2 {[%emt 0:01:51]} Rxe3 {[%emt 0:00:49]} 44. Kxe3 {[%emt 0:00:22]} Rb3+ {[%emt 0:00:05]} 45. Ke2 {[%emt 0:00:26]} Ke4 {[%emt 0:00:35]} 46. Kd1 {[%emt 0:01:56]} b5 {[%emt 0:00:48]} 47. Kc2 {[%emt 0:01:42]} c4 {[%emt 0:00:50]} 48. Rd8 {[%emt 0:10:34]} Rg3 {[%emt 0:00:22]} 49. Rb8 {[%emt 0:06:28]} Rxg2+ {[%emt 0:00:37]} 50. Kb1 {[%emt 0:01:08]} Rg5 {[%emt 0:00:14]} 51. b3 {[%emt 0:03:31]} Kd3 {[%emt 0:00:37]} 52. bxc4 {[%emt 0:00:52]} Rg1+ {[%emt 0:00:24]} 53. Kb2 {[%emt 0:00:37]} Rg2+ {[%emt 0:00:06]} 54. Kb1 {[%emt 0:01:47]} bxc4 {[%emt 0:00:06]} 55. Rh8 {[%emt 0:02:38]} Rg1+ {[%emt 0:01:27]} 56. Ka2 {[%emt 0:00:03]} Rd1 {[%emt 0:00:10]} 57. Rh3+ {[%emt 0:00:55]} Kc2 {[%emt 0:01:29]} 58. Rh4 {[%emt 0:00:51]} Kc3 {[%emt 0:00:44]} 59. Rh3+ {[%emt 0:00:18]} Rd3 {[%emt 0:00:08]} 60. Rh4 {[%emt 0:00:34]} Rd2+ {[%emt 0:00:50]} 61. Ka3 {[%emt 0:00:10]} Rd3 {[%emt 0:00:51]} 62. Ka2 {[%emt 0:00:12]} Rd4 {[%emt 0:00:09]} 63. Rh3+ {[%emt 0:00:31]} Kc2 {[%emt 0:00:45]} 64. Rh2+ {[%emt 0:00:06]} Rd2 {[%emt 0:00:04]} 65. Rh4 {[%emt 0:00:17]} Kc1+ {[%emt 0:01:01]} 66. Ka3 {[%emt 0:01:35]} c3 {[%emt 0:00:33]} 67. Rh1+ {[%emt 0:00:41]} Rd1 {[%emt 0:00:51]} 0-1

[Event "VI Sunway Sitges Open 2019"]
[Site "Sitges"]
[Date "2019.12.16"]
[Round "4.24"]
[White "Moradiabadi, Elshan"]
[Black "Kiremitciyan, Ari"]
[Result "1-0"]
[ECO "A14"]
[WhiteElo "2539"]
[BlackElo "2270"]
[Annotator "ChessBase"]
[PlyCount "93"]
[EventDate "2019.12.13"]
[EventType "swiss"]
[EventCountry "ESP"]
[SourceTitle "playchess.com"]
[Source "ChessBase"]
[SourceQuality "1"]
[TimeControl "40/5400+30:1800+30"]

1. c4 {[%emt 0:01:23]} c6 {[%emt 0:04:02]} 2. g3 {[%emt 0:02:08]} d5 {[%emt 0:01:05]} 3. Bg2 {[%emt 0:00:05]} Nf6 {[%emt 0:01:10]} 4. Nf3 {[%emt 0:00:05]} e6 {[%emt 0:01:15]} 5. b3 {[%emt 0:01:48]} Be7 {[%emt 0:02:41]} 6. O-O {[%emt 0:01:51]} O-O {[%emt 0:00:18]} 7. Bb2 {[%emt 0:00:12]} b6 {[%emt 0:02:27]} 8. e3 {[%emt 0:00:28]} Bb7 {[%emt 0:00:39]} 9. Qe2 {[%emt 0:00:01]} c5 {[%emt 0:10:05]} 10. Rd1 {[%emt 0:01:13]} Na6 {[%emt 0:02:24]} 11. d3 {[%emt 0:04:03]} Nc7 {[%emt 0:10:24]} 12. Nc3 {[%emt 0:00:30]} Bd6 {[%emt 0:05:06]} 13. Nh4 {[%emt 0:05:18]} Re8 {[%emt 0:04:27]} 14. Rac1 {[%emt 0:02:09]} e5 {[%emt 0:14:57]} 15. cxd5 {[%emt 0:05:09]} Ncxd5 {[%emt 0:00:57]} 16. Ne4 {[%emt 0:00:01]} Rb8 {[%emt 0:06:23]} 17. Nxd6 {[%emt 0:02:55]} Qxd6 {[%emt 0:00:01]} 18. Nf5 {[%emt 0:05:18]} Qd8 {[%emt 0:03:28]} 19. a3 {[%emt 0:05:12]} a5 {[%emt 0:05:59]} 20. h3 {[%emt 0:13:12]} Re6 {[%emt 0:10:36]} 21. Qc2 {[%emt 0:08:12]} h6 {[%emt 0:00:00]} 22. e4 {[%emt 0:02:17]} Ne7 {[%emt 0:00:00]} 23. f4 {[%emt 0:11:42]} exf4 {[%emt 0:07:17]} 24. Nxe7+ {[%emt 0:00:00]} Qxe7 {[%emt 0:00:14]} 25. gxf4 {[%emt 0:00:00]} Nh5 {[%emt 0:02:50]} 26. f5 {[%emt 0:00:00]} Rd6 {[%emt 0:00:09]} 27. Qe2 {[%emt 0:00:00]} Nf4 {[%emt 0:03:59]} 28. Qg4 {[%emt 0:00:00]} Qg5 {[%emt 0:05:27]} 29. Be5 {[%emt 0:01:24]} Qxg4 {[%emt 0:00:00]} 30. hxg4 {[%emt 0:00:02]} Ne2+ {[%emt 0:08:48]} 31. Kf2 {[%emt 0:09:33]} Nxc1 {[%emt 0:00:00]} 32. Bxd6 {[%emt 0:00:03]} Rd8 {[%emt 0:00:00]} 33. Rxc1 {[%emt 0:01:29]} Rxd6 {[%emt 0:00:00]} 34. e5 {[%emt 0:00:07]} Rd7 {[%emt 0:00:22]} 35. Bxb7 {[%emt 0:00:18]} Rxb7 {[%emt 0:00:00]} 36. b4 {[%emt 0:00:18]} cxb4 {[%emt 0:00:00]} 37. Rc8+ {[%emt 0:00:13]} Kh7 {[%emt 0:00:00]} 38. axb4 {[%emt 0:00:04]} Ra7 {[%emt 0:00:00]} 39. Ke3 {[%emt 0:03:01]} a4 {[%emt 0:00:00]} 40. Rc2 {[%emt 0:00:00]} g6 {[%emt 0:00:00]} 41. d4 {[%emt 0:00:32]} h5 {[%emt 0:06:14]} 42. d5 {[%emt 0:12:16]} a3 {[%emt 0:05:03]} 43. d6 {[%emt 0:03:18]} Rd7 {[%emt 0:07:12]} 44. gxh5 {[%emt 0:01:50]} gxf5 {[%emt 0:01:50]} 45. Kf4 {[%emt 0:00:42]} f6 {[%emt 0:04:09]} 46. Kxf5 {[%emt 0:00:24]} fxe5 {[%emt 0:00:09]} 47. Ke4 {[%emt 0:00:46]} 1-0

[Event "VI Sunway Sitges Open 2019"]
[Site "Sitges"]
[Date "2019.12.16"]
[Round "4.31"]
[White "Raja Rithvik R"]
[Black "Salgado Lopez, Ivan"]
[Result "0-1"]
[ECO "D37"]
[WhiteElo "2381"]
[BlackElo "2605"]
[Annotator "RC"]
[PlyCount "72"]
[EventDate "2019.12.13"]
[EventType "swiss"]
[EventCountry "ESP"]
[SourceTitle "playchess.com"]
[Source "ChessBase"]
[SourceQuality "1"]
[TimeControl "40/5400+30:1800+30"]

1. d4 {[%emt 0:00:00]} e6 {[%emt 0:00:00]} 2. c4 {[%emt 0:00:00]} a6 {[%emt 0:01:32]} 3. Nc3 {[%emt 0:06:58]} d5 {[%emt 0:00:21]} 4. cxd5 {[%emt 0:01:20]} exd5 {[%emt 0:00:16]} 5. Nf3 {[%emt 0:00:14]} Nf6 {[%emt 0:00:26]} 6. Bg5 {[%emt 0:03:21]} Be6 {[%emt 0:00:09]} 7. Bxf6 {[%emt 0:00:55]} Qxf6 {[%emt 0:00:07]} 8. Qb3 {[%emt 0:00:08]} Ra7 {[%emt 0:00:05]} 9. g3 {[%emt 0:05:40]} Qd8 {[%emt 0:00:25]} 10. Bg2 {[%emt 0:00:28]} Be7 {[%emt 0:00:18]} 11. O-O {[%emt 0:01:48]} c6 {[%emt 0:03:59]} 12. Qc2 {[%emt 0:07:25]} O-O {[%emt 0:02:58]} 13. Ne5 {[%emt 0:02:35]} Re8 {[%emt 0:02:59]} 14. e3 {[%emt 0:01:11]} Bf8 {[%emt 0:02:14]} 15. Rac1 {[%emt 0:01:39]} Nd7 {[%emt 0:09:55]} 16. Nxd7 {[%emt 0:14:38]} Bxd7 {[%emt 0:01:55]} 17. Na4 {[%emt 0:05:15]} h5 {[%emt 0:01:28]} 18. Nc5 {[%emt 0:02:55]} Bc8 {[%emt 0:00:51]} 19. Rfe1 {[%emt 0:06:41]} h4 {[%emt 0:02:32]} 20. e4 {[%emt 0:02:18]} h3 {[%emt 0:00:57]} 21. Bh1 {[%emt 0:00:38]} dxe4 {[%emt 0:03:52]} 22. Bxe4 {[%emt 0:01:10]} Re7 {[%emt 0:06:41]} 23. Rcd1 {[%emt 0:05:16]} Ra8 {[%emt 0:06:30]} 24. Qb3 {[%emt 0:05:34]} Bg4 {[%emt 0:04:45]} 25. Rd3 {[%emt 0:04:31]} Rb8 {[%emt 0:09:15]} 26. Ree3 {[%emt 0:01:58]} Qd6 {[%emt 0:01:23]} 27. Qc4 {[%emt 0:04:56]} Qf6 {[%emt 0:07:58]} 28. d5 {[%emt 0:06:21]} Qxb2 {[%emt 0:03:13]} 29. Rb3 {[%emt 0:00:53]} cxd5 {[%emt 0:03:21]} 30. Rxb2 {[%emt 0:05:15]} dxc4 {[%emt 0:00:34]} 31. f3 {[%emt 0:00:25]} Rc8 {[%emt 0:06:48]} 32. Nxb7 {[%emt 0:02:21]} Be6 {[%emt 0:00:49]} 33. Na5 {[%emt 0:00:54]} Rd7 {[%emt 0:00:47]} 34. Kf1 {[%emt 0:00:33]} Bc5 {[%emt 0:06:05]} 35. Re1 {[%emt 0:00:21]} c3 {[%emt 0:00:25]} 36. Rc2 {[%emt 0:00:32]} Bb6 {[%emt 0:00:25]} 0-1

[Event "VI Sunway Sitges Open 2019"]
[Site "Sitges"]
[Date "2019.12.16"]
[Round "4.32"]
[White "Liang, Awonder"]
[Black "Sankalp Gupta"]
[Result "1-0"]
[ECO "A16"]
[WhiteElo "2593"]
[BlackElo "2365"]
[Annotator "ChessBase"]
[PlyCount "55"]
[EventDate "2019.12.13"]
[EventType "swiss"]
[EventCountry "ESP"]
[SourceTitle "playchess.com"]
[Source "ChessBase"]
[SourceQuality "1"]
[TimeControl "40/5400+30:1800+30"]

1. Nf3 {[%emt 0:05:05]} Nf6 {[%emt 0:00:00]} 2. c4 {[%emt 0:00:10]} g6 {[%emt 0:00:02]} 3. Nc3 {[%emt 0:00:09]} d5 {[%emt 0:00:01]} 4. cxd5 {[%emt 0:00:10]} Nxd5 {[%emt 0:00:02]} 5. h4 {[%emt 0:00:13]} h6 {[%emt 0:02:41]} 6. e4 {[%emt 0:00:38]} Nxc3 {[%emt 0:00:52]} 7. bxc3 {[%emt 0:00:08]} Bg7 {[%emt 0:00:24]} 8. d4 {[%emt 0:00:20]} c5 {[%emt 0:01:05]} 9. Rb1 {[%emt 0:00:43]} cxd4 {[%emt 0:01:35]} 10. cxd4 {[%emt 0:00:09]} O-O {[%emt 0:01:40]} 11. Be2 {[%emt 0:06:35]} Qa5+ {[%emt 0:10:19]} 12. Bd2 {[%emt 0:00:07]} Qxa2 {[%emt 0:00:05]} 13. O-O {[%emt 0:00:07]} Bg4 {[%emt 0:07:04]} 14. Rxb7 {[%emt 0:00:09]} Nd7 {[%emt 0:07:58]} 15. h5 {[%emt 0:11:06]} Rab8 {[%emt 0:10:12]} 16. Rxb8 {[%emt 0:07:14]} Rxb8 {[%emt 0:00:03]} 17. hxg6 {[%emt 0:01:52]} Rb2 {[%emt 0:03:58]} 18. gxf7+ {[%emt 0:14:49]} Kf8 {[%emt 0:11:37]} 19. Bd3 {[%emt 0:15:30]} Bxf3 {[%emt 0:00:27]} 20. Qxf3 {[%emt 0:00:05]} Rxd2 {[%emt 0:00:07]} 21. e5 {[%emt 0:00:07]} Qb3 {[%emt 0:18:11]} 22. Qc6 {[%emt 0:08:55]} Rxd3 {[%emt 0:07:47]} 23. e6 {[%emt 0:01:28]} Rc3 {[%emt 0:00:06]} 24. Qxd7 {[%emt 0:00:04]} Qb8 {[%emt 0:00:03]} 25. d5 {[%emt 0:11:12]} Be5 {[%emt 0:05:13]} 26. Qa4 {[%emt 0:00:45]} Bf4 {[%emt 0:02:35]} 27. d6 {[%emt 0:00:37]} Bxd6 {[%emt 0:01:38]} 28. Qg4 {[%emt 0:00:11]} 1-0

[Event "VI Sunway Sitges Open 2019"]
[Site "Sitges"]
[Date "2019.12.16"]
[Round "4.33"]
[White "Meister, Peter"]
[Black "Peralta, Fernando"]
[Result "0-1"]
[ECO "E12"]
[WhiteElo "2373"]
[BlackElo "2577"]
[Annotator "ChessBase"]
[PlyCount "76"]
[EventDate "2019.12.13"]
[EventType "swiss"]
[EventCountry "ESP"]
[SourceTitle "playchess.com"]
[Source "ChessBase"]
[SourceQuality "1"]
[TimeControl "40/5400+30:1800+30"]

1. d4 {[%emt 0:00:00]} Nf6 {[%emt 0:00:00]} 2. Nf3 {[%emt 0:00:00]} e6 {[%emt 0:00:00]} 3. c4 {[%emt 0:00:24]} b6 {[%emt 0:00:15]} 4. a3 {[%emt 0:01:36]} Bb7 {[%emt 0:00:17]} 5. Nc3 {[%emt 0:00:07]} d5 {[%emt 0:00:12]} 6. Bg5 {[%emt 0:01:18]} Be7 {[%emt 0:00:35]} 7. Qa4+ {[%emt 0:00:43]} Bc6 {[%emt 0:07:31]} 8. Qb3 {[%emt 0:02:11]} dxc4 {[%emt 0:00:33]} 9. Qxc4 {[%emt 0:00:10]} O-O {[%emt 0:00:14]} 10. Rd1 {[%emt 0:25:29]} Bb7 {[%emt 0:10:26]} 11. Bxf6 {[%emt 0:04:59]} Bxf6 {[%emt 0:00:11]} 12. e4 {[%emt 0:00:18]} a6 {[%emt 0:12:28]} 13. Be2 {[%emt 0:03:14]} b5 {[%emt 0:05:14]} 14. Qa2 {[%emt 0:07:35]} c5 {[%emt 0:15:34]} 15. e5 {[%emt 0:03:28]} Be7 {[%emt 0:00:08]} 16. dxc5 {[%emt 0:10:32]} Qc7 {[%emt 0:00:27]} 17. b4 {[%emt 0:00:12]} Nd7 {[%emt 0:00:36]} 18. O-O {[%emt 0:01:10]} Rad8 {[%emt 0:00:43]} 19. Qc2 {[%emt 0:08:26]} Nxe5 {[%emt 0:02:57]} 20. Nxe5 {[%emt 0:00:46]} Qxe5 {[%emt 0:00:04]} 21. Bd3 {[%emt 0:00:55]} g6 {[%emt 0:16:53]} 22. Rfe1 {[%emt 0:02:08]} Qc7 {[%emt 0:01:29]} 23. Be4 {[%emt 0:04:36]} Bc8 {[%emt 0:00:14]} 24. g3 {[%emt 0:13:17]} f5 {[%emt 0:02:31]} 25. Bg2 {[%emt 0:00:25]} Bf6 {[%emt 0:00:08]} 26. Ne2 {[%emt 0:01:03]} Be5 {[%emt 0:08:30]} 27. Nc1 {[%emt 0:01:53]} Bg7 {[%emt 0:01:00]} 28. f4 {[%emt 0:02:15]} e5 {[%emt 0:01:28]} 29. fxe5 {[%emt 0:00:46]} Bxe5 {[%emt 0:00:13]} 30. Nd3 {[%emt 0:00:15]} Bd4+ {[%emt 0:01:05]} 31. Kh1 {[%emt 0:00:05]} g5 {[%emt 0:00:30]} 32. Re2 {[%emt 0:03:35]} f4 {[%emt 0:00:51]} 33. Ne1 {[%emt 0:00:24]} fxg3 {[%emt 0:05:42]} 34. Red2 {[%emt 0:00:09]} Bb7 {[%emt 0:03:50]} 35. c6 {[%emt 0:00:04]} Bxc6 {[%emt 0:00:34]} 36. Qb3+ {[%emt 0:01:50]} Kh8 {[%emt 0:00:22]} 37. hxg3 {[%emt 0:01:29]} Rf1+ {[%emt 0:02:07]} 38. Kh2 {[%emt 0:00:04]} Bg1+ {[%emt 0:00:55]} 0-1

[Event "VI Sunway Sitges Open 2019"]
[Site "Sitges"]
[Date "2019.12.16"]
[Round "4.34"]
[White "Sorensen, Hampus"]
[Black "Harutyunian, Tigran K."]
[Result "0-1"]
[ECO "E12"]
[WhiteElo "2364"]
[BlackElo "2540"]
[Annotator "ChessBase"]
[PlyCount "146"]
[EventDate "2019.12.13"]
[EventType "swiss"]
[EventCountry "ESP"]
[SourceTitle "playchess.com"]
[Source "ChessBase"]
[SourceQuality "1"]
[TimeControl "40/5400+30:1800+30"]

1. d4 {[%emt 0:00:00]} Nf6 {[%emt 0:00:00]} 2. c4 {[%emt 0:00:00]} e6 {[%emt 0:00:18]} 3. Nf3 {[%emt 0:00:36]} b6 {[%emt 0:00:29]} 4. a3 {[%emt 0:00:32]} Bb7 {[%emt 0:00:18]} 5. Nc3 {[%emt 0:00:22]} d5 {[%emt 0:00:16]} 6. Bg5 {[%emt 0:02:23]} Be7 {[%emt 0:00:50]} 7. Qa4+ {[%emt 0:04:07]} Bc6 {[%emt 0:00:49]} 8. Qb3 {[%emt 0:11:30]} dxc4 {[%emt 0:01:12]} 9. Qxc4 {[%emt 0:00:03]} a6 {[%emt 0:00:13]} 10. g3 {[%emt 0:02:41]} Bxf3 {[%emt 0:06:17]} 11. exf3 {[%emt 0:00:39]} O-O {[%emt 0:00:07]} 12. Bg2 {[%emt 0:02:31]} b5 {[%emt 0:01:37]} 13. Qd3 {[%emt 0:01:06]} c5 {[%emt 0:01:24]} 14. Rd1 {[%emt 0:01:06]} c4 {[%emt 0:04:50]} 15. Qe2 {[%emt 0:06:46]} Ra7 {[%emt 0:03:12]} 16. Be3 {[%emt 0:02:34]} Nd5 {[%emt 0:07:07]} 17. Nxd5 {[%emt 0:02:05]} exd5 {[%emt 0:00:30]} 18. f4 {[%emt 0:01:10]} b4 {[%emt 0:21:08]} 19. axb4 {[%emt 0:00:34]} Bxb4+ {[%emt 0:00:12]} 20. Kf1 {[%emt 0:00:11]} a5 {[%emt 0:01:26]} 21. Qf3 {[%emt 0:13:29]} Rd7 {[%emt 0:00:54]} 22. g4 {[%emt 0:01:10]} f5 {[%emt 0:02:14]} 23. gxf5 {[%emt 0:01:35]} Nc6 {[%emt 0:01:23]} 24. f6 {[%emt 0:02:04]} Qxf6 {[%emt 0:02:39]} 25. Bh3 {[%emt 0:01:48]} Rdd8 {[%emt 0:01:07]} 26. Rg1 {[%emt 0:02:26]} c3 {[%emt 0:02:41]} 27. bxc3 {[%emt 0:00:13]} Bxc3 {[%emt 0:00:06]} 28. Qg4 {[%emt 0:08:48]} Nxd4 {[%emt 0:06:18]} 29. Bxd4 {[%emt 0:06:38]} Bxd4 {[%emt 0:00:31]} 30. Qe6+ {[%emt 0:00:07]} Kh8 {[%emt 0:00:11]} 31. Qxf6 {[%emt 0:00:08]} Bxf6 {[%emt 0:00:07]} 32. Rg3 {[%emt 0:00:33]} d4 {[%emt 0:16:02]} 33. Ra3 {[%emt 0:02:40]} Rd5 {[%emt 0:00:59]} 34. Rda1 {[%emt 0:03:38]} Bd8 {[%emt 0:01:06]} 35. Be6 {[%emt 0:00:49]} Rd6 {[%emt 0:01:16]} 36. f5 {[%emt 0:00:24]} g6 {[%emt 0:00:16]} 37. Rb1 {[%emt 0:01:37]} d3 {[%emt 0:02:11]} 38. Rd1 {[%emt 0:02:36]} d2 {[%emt 0:01:39]} 39. Ra2 {[%emt 0:00:55]} Bg5 {[%emt 0:02:09]} 40. Rxa5 {[%emt 0:00:00]} Bh6 {[%emt 0:00:00]} 41. Rc5 {[%emt 0:12:46]} gxf5 {[%emt 0:05:59]} 42. Bb3 {[%emt 0:02:42]} Kg7 {[%emt 0:01:59]} 43. Bc2 {[%emt 0:02:35]} Kg6 {[%emt 0:01:35]} 44. Ke2 {[%emt 0:00:45]} Bg5 {[%emt 0:04:21]} 45. h4 {[%emt 0:04:02]} Re8+ {[%emt 0:08:52]} 46. Kf3 {[%emt 0:03:28]} Bxh4 {[%emt 0:00:46]} 47. Rxf5 {[%emt 0:04:06]} Kg7 {[%emt 0:00:48]} 48. Rg1+ {[%emt 0:04:55]} Kh8 {[%emt 0:03:04]} 49. Rh1 {[%emt 0:04:38]} Rc8 {[%emt 0:01:10]} 50. Bd1 {[%emt 0:02:18]} Bf6 {[%emt 0:01:27]} 51. Rf4 {[%emt 0:02:03]} Re6 {[%emt 0:04:20]} 52. Re4 {[%emt 0:02:23]} Rxe4 {[%emt 0:01:12]} 53. Kxe4 {[%emt 0:00:31]} Re8+ {[%emt 0:00:37]} 54. Kd3 {[%emt 0:01:17]} Re1 {[%emt 0:00:51]} 55. Rh6 {[%emt 0:01:18]} Kg7 {[%emt 0:02:04]} 56. Kxd2 {[%emt 0:01:06]} Bc3+ {[%emt 0:00:41]} 57. Kxc3 {[%emt 0:00:41]} Kxh6 {[%emt 0:00:34]} 58. Kd2 {[%emt 0:00:56]} Re7 {[%emt 0:00:38]} 59. Be2 {[%emt 0:00:47]} Kg5 {[%emt 0:00:45]} 60. Ke1 {[%emt 0:00:48]} Kh4 {[%emt 0:02:17]} 61. Kf1 {[%emt 0:00:59]} Kh3 {[%emt 0:00:36]} 62. Bf3 {[%emt 0:00:57]} Kh2 {[%emt 0:00:27]} 63. Bh5 {[%emt 0:00:56]} Re5 {[%emt 0:01:06]} 64. Bg4 {[%emt 0:01:04]} h5 {[%emt 0:00:09]} 65. Bd7 {[%emt 0:00:43]} h4 {[%emt 0:01:33]} 66. Bc8 {[%emt 0:00:36]} h3 {[%emt 0:00:46]} 67. Bb7 {[%emt 0:00:49]} Rb5 {[%emt 0:00:54]} 68. Bc6 {[%emt 0:00:48]} Rb1+ {[%emt 0:01:17]} 69. Ke2 {[%emt 0:00:07]} Kg1 {[%emt 0:00:13]} 70. f4 {[%emt 0:00:04]} h2 {[%emt 0:00:19]} 71. Ke3 {[%emt 0:00:18]} Rf1 {[%emt 0:00:18]} 72. Bb7 {[%emt 0:00:16]} h1=Q {[%emt 0:00:59]} 73. Bxh1 {[%emt 0:00:06]} Kxh1 {[%emt 0:00:02]} 0-1